fUST/lending_fUST_20260611
["ID","MTS","AMOUNT","RATE_DAILY","PERIOD"]
[424816111,1781178655000,-500.0,0.00036437,18]
[424816110,1781178655000,-500.0,0.00036437,18]
[424816134,1781178655000,-500.0,0.00036438,18]
[424816144,1781178655000,-500.0,0.00036438,18]
[424816152,1781178655000,-500.0,0.00036438,18]
[424816145,1781178655000,-500.0,0.00036438,18]
[424816153,1781178655000,-500.0,0.00036438,18]
[424816149,1781178655000,-500.0,0.00036438,18]
[424816156,1781178655000,-500.0,0.00036438,18]
[424816150,1781178655000,-500.0,0.00036438,18]
[424816147,1781178655000,-500.0,0.00036438,18]
[424816146,1781178655000,-500.0,0.00036438,18]
[424816151,1781178655000,-500.0,0.00036438,18]
[424816155,1781178655000,-500.0,0.00036438,18]
[424816154,1781178655000,-500.0,0.00036438,18]
[424816148,1781178655000,-1251.28,0.00036438,18]
[424816158,1781178655000,-661.46,0.00036438,18]
[424816157,1781178655000,-500.0,0.00036438,18]
[424816161,1781178655000,-500.0,0.00036438,18]
[424816160,1781178655000,-954.27,0.00036438,18]
[424816159,1781178655000,-500.0,0.00036438,18]
[424816163,1781178655000,-500.0,0.00036438,18]
[424816112,1781178655000,-500.0,0.00036437,18]
[424816165,1781178655000,-500.0,0.00036438,18]
[424816164,1781178655000,-500.0,0.00036438,18]
[424816167,1781178655000,-501.57381638,0.00036438,18]
[424816166,1781178655000,-500.0,0.00036438,18]
[424816137,1781178655000,-501.84208269,0.00036438,18]
[424816135,1781178655000,-794.89,0.00036438,18]
[424816162,1781178655000,-381.64496012,0.00036438,18]
[424816136,1781178655000,-500.0,0.00036438,18]
[424816133,1781178655000,-500.0,0.00036438,18]
[424816109,1781178655000,-500.0,0.00036437,18]
[424816113,1781178655000,-500.0,0.00036437,18]
[424816114,1781178655000,-610.94234533,0.00036437,18]
[424816115,1781178655000,-513.48597924,0.00036437,18]
[424816118,1781178655000,-500.0,0.00036438,18]
[424816120,1781178655000,-500.0,0.00036438,18]
[424816121,1781178655000,-500.0,0.00036438,18]
[424816130,1781178655000,-500.0,0.00036438,18]
[424816119,1781178655000,-500.0,0.00036438,18]
[424816123,1781178655000,-501.25717517,0.00036438,18]
[424816122,1781178655000,-501.52754904,0.00036438,18]
[424816124,1781178655000,-500.0,0.00036438,18]
[424816116,1781178655000,-525.6842,0.00036438,18]
[424816126,1781178655000,-1644.74,0.00036438,2]
[424816128,1781178655000,-500.0,0.00036438,18]
[424816142,1781178655000,-500.0,0.00036438,18]
[424816131,1781178655000,-568.37,0.00036438,18]
[424816139,1781178655000,-832.13,0.00036438,18]
[424816141,1781178655000,-500.0,0.00036438,18]
[424816143,1781178655000,-500.0,0.00036438,18]
[424816132,1781178655000,-500.0,0.00036438,18]
[424816129,1781178655000,-500.0,0.00036438,18]
[424816125,1781178655000,-1000.0,0.00036438,2]
[424816127,1781178655000,-500.0,0.00036438,18]
[424816138,1781178655000,-500.0,0.00036438,18]
[424816140,1781178655000,-355.32140119,0.00036438,18]
[424816193,1781178656000,-500.0,0.00036438,18]
[424816203,1781178656000,-500.0,0.00036438,18]
[424816195,1781178656000,-500.0,0.00036438,18]
[424816199,1781178656000,-500.0,0.00036438,18]
[424816198,1781178656000,-500.0,0.00036438,18]
[424816197,1781178656000,-2223.75,0.00036438,18]
[424816194,1781178656000,-601.52,0.00036438,18]
[424816200,1781178656000,-500.0,0.00036438,18]
[424816216,1781178656000,-500.0,0.00036438,18]
[424816204,1781178656000,-776.27,0.00036438,18]
[424816205,1781178656000,-500.0,0.00036438,18]
[424816208,1781178656000,-500.0,0.00036438,18]
[424816202,1781178656000,-602.84438754,0.00036438,18]
[424816207,1781178656000,-500.0,0.00036438,18]
[424816210,1781178656000,-731.28,0.00036438,6]
[424816209,1781178656000,-500.0,0.00036438,18]
[424816211,1781178656000,-500.0,0.00036438,18]
[424816213,1781178656000,-500.0,0.00036438,18]
[424816212,1781178656000,-785.8,0.00036438,18]
[424816196,1781178656000,-500.0,0.00036438,18]
[424816206,1781178656000,-500.0,0.00036438,18]
[424816190,1781178656000,-177.5753195,0.00036438,18]
[424816178,1781178656000,-1112.33,0.00036438,18]
[424816192,1781178656000,-500.0,0.00036438,18]
[424816168,1781178656000,-500.0,0.00036438,18]
[424816169,1781178656000,-500.0,0.00036438,18]
[424816170,1781178656000,-580.03,0.00036438,18]
[424816171,1781178656000,-502.01407709,0.00036438,18]
[424816172,1781178656000,-773.97,0.00036438,18]
[424816173,1781178656000,-763.55,0.00036438,18]
[424816174,1781178656000,-1404.21,0.00036438,18]
[424816175,1781178656000,-500.0,0.00036438,18]
[424816177,1781178656000,-500.0,0.00036438,18]
[424816176,1781178656000,-500.0,0.00036438,18]
[424816179,1781178656000,-500.0,0.00036438,18]
[424816180,1781178656000,-500.0,0.00036438,18]
[424816183,1781178656000,-500.0,0.00036438,18]
[424816182,1781178656000,-1262.08,0.00036438,18]
[424816181,1781178656000,-539.49924728,0.00036438,18]
[424816184,1781178656000,-500.0,0.00036438,18]
[424816185,1781178656000,-500.0,0.00036438,18]
[424816186,1781178656000,-500.0,0.00036438,18]
[424816187,1781178656000,-500.0,0.00036438,18]
[424816188,1781178656000,-500.0,0.00036438,18]
[424816189,1781178656000,-500.0,0.00036438,18]
[424816191,1781178656000,-500.0,0.00036438,18]
[424816215,1781178656000,-828.0,0.00036438,18]
[424816201,1781178656000,-271.70604951,0.00036438,18]
[424816218,1781178656000,-500.0,0.00036438,18]
[424816241,1781178656000,-500.0,0.00036438,18]
[424816242,1781178656000,-500.0,0.00036438,18]
[424816243,1781178656000,-700.04,0.00036438,18]
[424816246,1781178656000,-500.0,0.00036438,18]
[424816248,1781178656000,-503.65673147,0.00036438,18]
[424816249,1781178656000,-628.9,0.00036438,18]
[424816247,1781178656000,-500.0,0.00036438,18]
[424816250,1781178656000,-500.0,0.00036438,18]
[424816253,1781178656000,-500.0,0.00036438,18]
[424816251,1781178656000,-500.18966747,0.00036438,18]
[424816252,1781178656000,-500.0,0.00036438,18]
[424816255,1781178656000,-726.66,0.00036438,18]
[424816256,1781178656000,-500.0,0.00036438,18]
[424816254,1781178656000,-685.24,0.00036438,18]
[424816259,1781178656000,-500.0,0.00036438,18]
[424816258,1781178656000,-543.03,0.00036438,18]
[424816260,1781178656000,-500.0,0.00036438,18]
[424816261,1781178656000,-500.0,0.00036438,18]
[424816262,1781178656000,-307.11330298,0.00036438,18]
[424816263,1781178656000,-500.0,0.00036438,18]
[424816214,1781178656000,-500.0,0.00036438,18]
[424816244,1781178656000,-500.0,0.00036438,18]
[424816240,1781178656000,-500.0,0.00036438,18]
[424816257,1781178656000,-516.72,0.00036438,18]
[424816238,1781178656000,-380.77,0.00036438,18]
[424816239,1781178656000,-519.04,0.00036438,18]
[424816220,1781178656000,-500.0,0.00036438,18]
[424816222,1781178656000,-500.0,0.00036438,18]
[424816217,1781178656000,-643.04,0.00036438,18]
[424816221,1781178656000,-500.0,0.00036438,18]
[424816219,1781178656000,-500.0,0.00036438,18]
[424816224,1781178656000,-500.0,0.00036438,18]
[424816226,1781178656000,-877.12,0.00036438,18]
[424816225,1781178656000,-903.44,0.00036438,18]
[424816227,1781178656000,-500.0,0.00036438,18]
[424816223,1781178656000,-642.73902066,0.00036438,18]
[424816235,1781178656000,-500.0,0.00036438,18]
[424816230,1781178656000,-500.0,0.00036438,18]
[424816229,1781178656000,-1241.53,0.00036438,18]
[424816233,1781178656000,-500.0,0.00036438,18]
[424816231,1781178656000,-500.0,0.00036438,18]
[424816232,1781178656000,-500.0,0.00036438,18]
[424816245,1781178656000,-763.54,0.00036438,18]
[424816236,1781178656000,-825.74,0.00036438,18]
[424816234,1781178656000,-500.0,0.00036438,18]
[424816237,1781178656000,-500.0,0.00036438,18]
[424816228,1781178656000,-500.0,0.00036438,18]
[424816298,1781178657000,-685.55,0.00036438,18]
[424816293,1781178657000,-500.0,0.00036438,18]
[424816303,1781178657000,-500.0,0.00036438,18]
[424816305,1781178657000,-500.0,0.00036438,18]
[424816307,1781178657000,-500.0,0.00036438,18]
[424816304,1781178657000,-500.0,0.00036438,18]
[424816291,1781178657000,-502.11747543,0.00036438,18]
[424816300,1781178657000,-2323.2,0.00036438,18]
[424816299,1781178657000,-500.0,0.00036438,18]
[424816297,1781178657000,-500.0,0.00036438,18]
[424816302,1781178657000,-500.0,0.00036438,18]
[424816301,1781178657000,-500.0,0.00036438,18]
[424816308,1781178657000,-502.61053295,0.00036438,18]
[424816313,1781178657000,-759.78,0.00036438,18]
[424816310,1781178657000,-1232.57,0.00036438,18]
[424816311,1781178657000,-500.0,0.00036438,18]
[424816316,1781178657000,-500.0,0.00036438,18]
[424816321,1781178657000,-500.0,0.00036438,18]
[424816317,1781178657000,-349.19192976,0.00036438,18]
[424816322,1781178657000,-488.8234101,0.00036438,18]
[424816312,1781178657000,-500.0,0.00036438,18]
[424816315,1781178657000,-608.26390531,0.00036438,18]
[424816314,1781178657000,-503.63433994,0.00036438,18]
[424816318,1781178657000,-500.0,0.00036438,18]
[424816320,1781178657000,-500.0,0.00036438,18]
[424816294,1781178657000,-500.0,0.00036438,18]
[424816309,1781178657000,-702.57,0.00036438,18]
[424816290,1781178657000,-661.27,0.00036438,18]
[424816265,1781178657000,-500.0,0.00036438,18]
[424816292,1781178657000,-1820.82,0.00036438,18]
[424816270,1781178657000,-500.0,0.00036438,18]
[424816269,1781178657000,-500.0,0.00036438,18]
[424816264,1781178657000,-500.0,0.00036438,18]
[424816266,1781178657000,-500.0,0.00036438,18]
[424816267,1781178657000,-552.34110419,0.00036438,18]
[424816319,1781178657000,-501.80454224,0.00036438,18]
[424816268,1781178657000,-500.0,0.00036438,18]
[424816274,1781178657000,-500.0,0.00036438,18]
[424816271,1781178657000,-500.0,0.00036438,18]
[424816276,1781178657000,-943.03,0.00036438,18]
[424816281,1781178657000,-500.0,0.00036438,18]
[424816282,1781178657000,-500.0,0.00036438,18]
[424816273,1781178657000,-500.0,0.00036438,18]
[424816277,1781178657000,-2171.57,0.00036438,18]
[424816275,1781178657000,-500.0,0.00036438,2]
[424816272,1781178657000,-2992.88,0.00036438,18]
[424816278,1781178657000,-500.0,0.00036438,18]
[424816279,1781178657000,-520.67,0.00036438,18]
[424816283,1781178657000,-500.0,0.00036438,18]
[424816280,1781178657000,-500.0,0.00036438,18]
[424816285,1781178657000,-500.0,0.00036438,18]
[424816295,1781178657000,-500.0,0.00036438,18]
[424816296,1781178657000,-502.91920288,0.00036438,18]
[424816284,1781178657000,-500.0,0.00036438,18]
[424816287,1781178657000,-500.0,0.00036438,18]
[424816286,1781178657000,-500.0,0.00036438,18]
[424816288,1781178657000,-500.0,0.00036438,18]
[424816289,1781178657000,-500.0,0.00036438,18]
[424816323,1781178657000,-500.0,0.00036438,18]
[424816306,1781178657000,-535.74104794,0.00036438,18]
[424816327,1781178657000,-500.0,0.00036438,18]
[424816357,1781178657000,-500.0,0.00036438,18]
[424816358,1781178657000,-1238.61,0.00036438,18]
[424816360,1781178657000,-500.0,0.00036438,18]
[424816361,1781178657000,-500.0,0.00036438,18]
[424816359,1781178657000,-500.0,0.00036438,18]
[424816362,1781178657000,-500.0,0.00036438,18]
[424816364,1781178657000,-500.0,0.00036438,18]
[424816365,1781178657000,-500.0,0.00036438,18]
[424816367,1781178657000,-500.0,0.00036438,18]
[424816366,1781178657000,-1543.95,0.00036438,18]
[424816368,1781178657000,-771.91,0.00036438,18]
[424816369,1781178657000,-500.0,0.00036438,18]
[424816377,1781178657000,-500.0,0.00036438,18]
[424816378,1781178657000,-500.0,0.00036438,18]
[424816380,1781178657000,-500.0,0.00036438,18]
[424816379,1781178657000,-500.0,0.00036438,10]
[424816370,1781178657000,-885.41,0.00036438,18]
[424816371,1781178657000,-500.0,0.00036438,18]
[424816372,1781178657000,-500.0,0.00036438,18]
[424816373,1781178657000,-500.0,0.00036438,18]
[424816376,1781178657000,-502.72023579,0.00036438,18]
[424816375,1781178657000,-1099.33,0.00036438,18]
[424816374,1781178657000,-500.0,0.00036438,18]
[424816381,1781178657000,-1119.6,0.00036438,18]
[424816384,1781178657000,-12220.60031177,0.00036438,18]
[424816382,1781178657000,-539.59,0.00036438,18]
[424816325,1781178657000,-677.99,0.00036438,18]
[424816353,1781178657000,-500.0,0.00036438,18]
[424816354,1781178657000,-500.0,0.00036438,18]
[424816363,1781178657000,-500.0,0.00036438,18]
[424816352,1781178657000,-859.66,0.00036438,18]
[424816324,1781178657000,-1299.61,0.00036438,18]
[424816328,1781178657000,-338.18851485,0.00036438,18]
[424816326,1781178657000,-500.0,0.00036438,18]
[424816331,1781178657000,-500.0,0.00036438,18]
[424816329,1781178657000,-500.0,0.00036438,18]
[424816355,1781178657000,-1480.55,0.00036438,18]
[424816332,1781178657000,-502.36097626,0.00036438,18]
[424816333,1781178657000,-500.0,0.00036438,18]
[424816339,1781178657000,-1771.21,0.00036438,18]
[424816336,1781178657000,-500.0,0.00036438,14]
[424816337,1781178657000,-868.01,0.00036438,11]
[424816338,1781178657000,-181.14621217,0.00036438,18]
[424816335,1781178657000,-500.0,0.00036438,18]
[424816341,1781178657000,-500.0,0.00036438,18]
[424816330,1781178657000,-500.0,0.00036438,18]
[424816344,1781178657000,-874.81,0.00036438,18]
[424816348,1781178657000,-2465.84,0.00036438,18]
[424816350,1781178657000,-500.0,0.00036438,18]
[424816347,1781178657000,-549.29967349,0.00036438,18]
[424816349,1781178657000,-500.0,0.00036438,18]
[424816340,1781178657000,-500.0,0.00036438,18]
[424816383,1781178657000,-503.04559006,0.00036438,18]
[424816345,1781178657000,-1410.14,0.00036438,18]
[424816351,1781178657000,-500.0,0.00036438,18]
[424816346,1781178657000,-500.0,0.00036438,2]
[424816343,1781178657000,-1904.55,0.00036438,18]
[424816342,1781178657000,-500.0,0.00036438,18]
[424816334,1781178657000,-502.04491507,0.00036438,18]
[424816356,1781178657000,-500.0,0.00036438,18]
[424816388,1781178859000,5000.0,0.00024658,30]
[424816389,1781178881000,5000.0,0.00024658,30]
[424816391,1781179048000,2509.23271325,7.6e-05,2]
[424816400,1781179170000,-1000.0,0.0001,2]
[424816401,1781179170000,-215.08095502,0.0001,2]
[424816399,1781179170000,-5000.0,9.9e-05,2]
[424816403,1781179368000,-351.86512161,0.00020343,2]
[424816422,1781179832000,-433.45811007,0.0001724,2]
[424816421,1781179832000,-1676.33420601,0.0001724,2]
[424816432,1781179838000,-2890.20768392,0.0001724,2]
[424816434,1781179838000,-189.02301089,0.00017414,2]
[424816445,1781179838000,-444.0,0.00032054,2]
[424816444,1781179838000,-186.0,0.00032054,2]
[424816433,1781179838000,-632.66967837,0.00017314,2]
[424816435,1781179838000,-152.84418655,0.00019732,2]
[424816436,1781179838000,-340.24141961,0.00021486,2]
[424816439,1781179838000,-444.0,0.00026054,2]
[424816442,1781179838000,-3189.4468035,0.00029906,120]
[424816438,1781179838000,-186.0,0.00026054,2]
[424816443,1781179838000,-732.8745443,0.00030056,2]
[424816449,1781179838000,-351.86512161,0.00033605,2]
[424816440,1781179838000,-186.0,0.00029054,2]
[424816441,1781179838000,-444.0,0.00029054,2]
[424816446,1781179838000,-168.35958676,0.000332,117]
[424816448,1781179838000,-168.35958674,0.000332,117]
[424816453,1781179838000,-444.0,0.00035054,2]
[424816447,1781179838000,-168.35958674,0.000332,117]
[424816450,1781179838000,-500.0,0.00034767,15]
[424816451,1781179838000,-714.90743814,0.00035017,2]
[424816455,1781179838000,-931.43834698,0.00035139,2]
[424816452,1781179838000,-186.0,0.00035054,2]
[424816454,1781179838000,-8770.83422399,0.00035139,2]
[424816437,1781179838000,-235.31455198,0.00023543,2]
[424816457,1781179841000,-48.85881144,0.00035139,2]
[424816459,1781179841000,-1221.60926296,0.00035181,2]
[424816458,1781179841000,-4610.83871062,0.00035181,2]
[424816663,1781179843000,-500.0,0.00035239,7]
[424816656,1781179843000,-500.0,0.00035239,7]
[424816657,1781179843000,-500.0,0.00035239,7]
[424816662,1781179843000,-500.0,0.00035239,7]
[424816659,1781179843000,-500.0,0.00035239,7]
[424816661,1781179843000,-500.0,0.00035239,7]
[424816658,1781179843000,-500.0,0.00035239,7]
[424816655,1781179843000,-274.71971821,0.00035239,7]
[424816649,1781179843000,-819.30227355,0.00035181,2]
[424816650,1781179843000,-175.6602546,0.00035181,2]
[424816653,1781179843000,-300.0,0.00035233,38]
[424816652,1781179843000,-9567.12262191,0.00035223,2]
[424816651,1781179843000,-184.00876047,0.00035223,2]
[424816647,1781179843000,-625.1228369,0.00035181,2]
[424816648,1781179843000,-1902.04860122,0.00035181,2]
[424816646,1781179843000,-396.54944253,0.00035181,2]
[424816654,1781179843000,-500.0,0.00035239,7]
[424816669,1781179843000,-500.0,0.00035239,7]
[424816660,1781179843000,-500.0,0.00035239,7]
[424816665,1781179843000,-500.0,0.00035239,7]
[424816666,1781179843000,-500.0,0.00035239,7]
[424816687,1781179843000,-2651.49582294,0.00035265,2]
[424816688,1781179843000,-6737.03391632,0.00035265,2]
[424816677,1781179843000,-500.0,0.00035239,7]
[424816679,1781179843000,-500.0,0.00035239,7]
[424816676,1781179843000,-500.0,0.00035239,7]
[424816678,1781179843000,-500.0,0.00035239,7]
[424816680,1781179843000,-500.0,0.00035239,7]
[424816674,1781179843000,-500.0,0.00035239,7]
[424816686,1781179843000,-500.0,0.00035239,7]
[424816672,1781179843000,-500.0,0.00035239,7]
[424816682,1781179843000,-607.72565807,0.00035239,7]
[424816681,1781179843000,-500.0,0.00035239,7]
[424816683,1781179843000,-500.0,0.00035239,7]
[424816685,1781179843000,-500.0,0.00035239,7]
[424816670,1781179843000,-500.0,0.00035239,7]
[424816671,1781179843000,-500.0,0.00035239,7]
[424816668,1781179843000,-500.0,0.00035239,7]
[424816684,1781179843000,-500.0,0.00035239,7]
[424816706,1781179846000,-957.02718671,0.00035389,7]
[424816707,1781179846000,-957.02718671,0.00035389,7]
[424816708,1781179846000,-957.02718671,0.00035389,7]
[424816712,1781179846000,-957.02718671,0.00035389,7]
[424816710,1781179846000,-957.02718671,0.00035389,7]
[424816699,1781179846000,-9751.13138238,0.00035348,2]
[424816711,1781179846000,-957.02718671,0.00035389,7]
[424816704,1781179846000,-957.02718671,0.00035389,7]
[424816705,1781179846000,-957.02718671,0.00035389,7]
[424816703,1781179846000,-957.02718671,0.00035389,7]
[424816702,1781179846000,-957.02718671,0.00035389,7]
[424816696,1781179846000,-394.87649838,0.0003529,7]
[424816698,1781179846000,-9751.13138238,0.00035307,2]
[424816697,1781179846000,-300.0,0.00035296,38]
[424816695,1781179846000,-362.60164312,0.00035265,2]
[424816713,1781179846000,-957.02718671,0.00035389,7]
[424816700,1781179846000,-300.0,0.00035351,38]
[424816716,1781179846000,-957.02718671,0.00035389,7]
[424816701,1781179846000,-186.55930392,0.00035389,7]
[424816715,1781179846000,-957.02718671,0.00035389,7]
[424816709,1781179846000,-957.02718671,0.00035389,7]
[424816730,1781179846000,-976.16773045,0.00035389,7]
[424816731,1781179846000,-1724.5629905,0.00035389,7]
[424816728,1781179846000,-976.16773045,0.00035389,7]
[424816719,1781179846000,-957.02718671,0.00035389,7]
[424816723,1781179846000,-976.16773045,0.00035389,7]
[424816732,1781179846000,-3384.76054169,0.0003539,2]
[424816722,1781179846000,-957.02718671,0.00035389,7]
[424816721,1781179846000,-957.02718671,0.00035389,7]
[424816733,1781179846000,-100537.73212082,0.0003539,2]
[424816727,1781179846000,-976.16773045,0.00035389,7]
[424816720,1781179846000,-957.02718671,0.00035389,7]
[424816717,1781179846000,-957.02718671,0.00035389,7]
[424816725,1781179846000,-976.16773045,0.00035389,7]
[424816729,1781179846000,-976.16773045,0.00035389,7]
[424816726,1781179846000,-976.16773045,0.00035389,7]
[424816714,1781179846000,-957.02718671,0.00035389,7]
[424816724,1781179846000,-976.16773045,0.00035389,7]
[424816718,1781179846000,-957.02718671,0.00035389,7]
[424816736,1781180051000,5000.0,0.00024658,30]
[424816737,1781180073000,5000.0,0.00024658,30]
[424816833,1781181032000,-152.0,0.0002471,30]
[424816835,1781181032000,-2926.93658923,0.00027283,2]
[424816841,1781181032000,-444.0,0.00027558,2]
[424816839,1781181032000,-186.0,0.00027558,2]
[424816837,1781181032000,-2073.06341077,0.00027283,2]
[424816843,1781181032000,-901.87868291,0.00027941,2]
[424816881,1781181038000,-368.5513986,0.0002802,2]
[424816880,1781181038000,-1400.84440367,0.00027941,2]
[424816879,1781181038000,-2998.57387006,0.00027941,2]
[424816883,1781181038000,-500.0,0.0002804,2]
[424816882,1781181038000,-500.0,0.0002804,2]
[424816884,1781181038000,-500.0,0.0002804,2]
[424816885,1781181038000,-500.0,0.0002804,2]
[424816887,1781181038000,-321.54513162,0.0002804,2]
[424816897,1781181038000,-814.51869421,0.00028041,2]
[424816901,1781181038000,-814.51869421,0.00028041,2]
[424816893,1781181038000,-814.51869421,0.00028041,2]
[424816892,1781181038000,-814.51869421,0.00028041,2]
[424816903,1781181038000,-814.51869421,0.00028041,2]
[424816895,1781181038000,-814.51869421,0.00028041,2]
[424816888,1781181038000,-814.51869421,0.00028041,2]
[424816886,1781181038000,-500.0,0.0002804,2]
[424816890,1781181038000,-814.51869421,0.00028041,2]
[424816899,1781181038000,-814.51869421,0.00028041,2]
[424816912,1781181039000,-845.84633631,0.00028041,2]
[424816905,1781181039000,-814.51869421,0.00028041,2]
[424816907,1781181039000,-814.51869421,0.00028041,2]
[424816908,1781181039000,-814.51869421,0.00028041,2]
[424816910,1781181039000,-814.51869421,0.00028041,2]
[424816914,1781181039000,-845.84633631,0.00028041,2]
[424816916,1781181039000,-845.84633631,0.00028041,2]
[424816918,1781181039000,-845.84633631,0.00028041,2]
[424816926,1781181039000,-845.84633631,0.00028041,2]
[424816924,1781181039000,-845.84633631,0.00028041,2]
[424816922,1781181039000,-845.84633631,0.00028041,2]
[424816940,1781181039000,-5550.42839564,0.00028042,2]
[424816942,1781181039000,-37671.28259204,0.00028042,2]
[424816938,1781181039000,-1095.6353325,0.00028041,2]
[424816934,1781181039000,-12.32408421,0.00028041,2]
[424816936,1781181039000,-1095.6353325,0.00028041,2]
[424816928,1781181039000,-845.84633631,0.00028041,2]
[424816920,1781181039000,-845.84633631,0.00028041,2]
[424816930,1781181039000,-845.84633631,0.00028041,2]
[424816932,1781181039000,-833.5222521,0.00028041,2]
[424817851,1781181046000,-14983.99839749,0.00028042,2]
[424819791,1781182232000,-370.54186741,0.00018169,2]
[424819786,1781182232000,-3681.7,0.00018169,2]
[424819816,1781182238000,-154.0,0.0001928,2]
[424819815,1781182238000,-150.0,0.00018538,2]
[424819814,1781182238000,-947.75813259,0.00018169,2]
[424819817,1781182238000,-206.0,0.00020207,2]
[424819819,1781182238000,-257.0,0.00022061,2]
[424819820,1781182238000,-206.0,0.00023173,2]
[424819822,1781182238000,-273.57785249,0.000246,2]
[424819821,1781182238000,-273.5778525,0.000246,2]
[424819823,1781182238000,-273.57785249,0.000246,2]
[424819824,1781182238000,-306.94623964,0.0002471,7]
[424819818,1781182238000,-257.0,0.00021134,2]
[424819825,1781182238000,-5709.68765189,0.00024814,2]
[424819827,1781182239000,-152.0,0.00024954,30]
[424819826,1781182239000,-1546.39406701,0.00024814,2]
[424819828,1781182239000,-210.0,0.00025027,2]
[424819831,1781182239000,-306.94623964,0.00026687,7]
[424819829,1781182239000,-306.94623964,0.00025204,7]
[424819830,1781182239000,-306.94623964,0.00025946,7]
[424819832,1781182239000,-186.0,0.00026801,2]
[424819833,1781182239000,-183.44155051,0.00027675,7]
[424819834,1781182239000,-123.50468917,0.00027675,7]
[424819836,1781182239000,-292.30719227,0.00027841,2]
[424819838,1781182239000,-1500.0,0.000279,7]
[424819837,1781182239000,-3510.4072977,0.00027842,2]
[424819839,1781182239000,-3510.40729765,0.00027911,2]
[424819841,1781182239000,-2048.15687888,0.00027979,2]
[424819840,1781182239000,-1225.73885322,0.00027942,2]
[424819835,1781182239000,-500.0,0.00027841,2]
[424820561,1781182246000,-256.2,0.00027699,2]
[424820702,1781182247000,-593.67546032,0.00027999,2]
[424820719,1781182247000,-593.67546032,0.00027999,2]
[424820716,1781182247000,-593.67546032,0.00027999,2]
[424820712,1781182247000,-593.67546032,0.00027999,2]
[424820714,1781182247000,-593.67546032,0.00027999,2]
[424820694,1781182247000,-593.67546032,0.00027999,2]
[424820724,1781182247000,-593.67546032,0.00027999,2]
[424820696,1781182247000,-593.67546032,0.00027999,2]
[424820698,1781182247000,-593.67546032,0.00027999,2]
[424820692,1781182247000,-1462.25041877,0.00027979,2]
[424820690,1781182247000,-3886.7357497,0.00027699,2]
[424820688,1781182247000,-372.9242503,0.00027699,2]
[424820663,1781182247000,-484.14,0.00027699,2]
[424820705,1781182247000,-593.67546032,0.00027999,2]
[424820700,1781182247000,-593.67546032,0.00027999,2]
[424820722,1781182247000,-593.67546032,0.00027999,2]
[424820729,1781182247000,-631.4548078,0.00027999,2]
[424820707,1781182247000,-593.67546032,0.00027999,2]
[424820755,1781182247000,-18024.17323468,0.00028042,2]
[424820751,1781182247000,-1057.68680308,0.00027999,2]
[424820747,1781182247000,-631.4548078,0.00027999,2]
[424820704,1781182247000,-593.67546032,0.00027999,2]
[424820749,1781182247000,-631.4548078,0.00027999,2]
[424820745,1781182247000,-631.4548078,0.00027999,2]
[424820744,1781182247000,-631.4548078,0.00027999,2]
[424820753,1781182247000,-38435.54048311,0.00028,2]
[424820736,1781182247000,-631.4548078,0.00027999,2]
[424820734,1781182247000,-631.4548078,0.00027999,2]
[424820732,1781182247000,-631.4548078,0.00027999,2]
[424820726,1781182247000,-631.4548078,0.00027999,2]
[424820709,1781182247000,-593.67546032,0.00027999,2]
[424820711,1781182247000,-593.67546032,0.00027999,2]
[424820742,1781182247000,-631.4548078,0.00027999,2]